fUST/lending_fUST_20260106
["ID","MTS","AMOUNT","RATE_DAILY","PERIOD"]
[400484751,1767651704701,-298.44,0.0001,2]
[400484752,1767651704722,-300.0,0.00010096,2]
[400484753,1767651704742,-300.0,0.00010096,2]
[400484754,1767651704765,-300.0,0.00010097,2]
[400484755,1767651704787,-300.0,0.00010097,2]
[400484756,1767651704809,-300.0,0.00010097,2]
[400484757,1767651704833,-300.0,0.00010097,2]
[400484758,1767651704856,-300.0,0.00010097,2]
[400484759,1767651704878,-300.0,0.00010097,2]
[400484760,1767651704900,-300.0,0.00010097,2]
[400484761,1767651704922,-300.0,0.00010097,2]
[400484762,1767651704944,-300.0,0.00010097,2]
[400484763,1767651704967,-300.0,0.00010097,2]
[400484764,1767651704990,-300.0,0.00010097,2]
[400484765,1767651705012,-300.0,0.00010097,2]
[400484766,1767651705034,-300.0,0.00010097,2]
[400484767,1767651705057,-300.0,0.00010097,2]
[400484768,1767651705079,-300.0,0.00010097,2]
[400484769,1767651705100,-1113.4568903,0.00010192,2]
[400484770,1767651705120,-298.44,0.000104,2]
[400484771,1767651705141,-678.24532539,0.00010685,2]
[400484772,1767651705163,-298.44,0.000108,2]
[400484773,1767651705184,-300.0,0.00011085,2]
[400484774,1767651705205,-300.0,0.00011085,2]
[400484775,1767651705226,-300.0,0.00011085,2]
[400484776,1767651705388,-1200.0,0.00011085,2]
[400484777,1767651705412,-554.37754812,0.00011086,2]
[400484778,1767651705436,-500.0,0.00011086,2]
[400484779,1767651705459,-500.0,0.00011086,2]
[400484780,1767651705483,-500.0,0.00011086,2]
[400484781,1767651705507,-500.0,0.00011086,2]
[400484782,1767651705539,-368.95220535,0.00011086,2]
[400484783,1767651705575,-500.0,0.00011086,2]
[400484784,1767651705601,-500.0,0.00011086,2]
[400484785,1767651705628,-500.0,0.00011086,2]
[400484786,1767651705653,-500.0,0.00011086,2]
[400484787,1767651705676,-500.0,0.00011086,2]
[400484788,1767651705701,-500.0,0.00011086,2]
[400484789,1767651705725,-468.94006733,0.00011086,2]
[400484790,1767651705748,-416.20478398,0.00011086,2]
[400484791,1767651705771,-500.0,0.00011086,2]
[400484792,1767651705795,-500.0,0.00011086,2]
[400484793,1767651705819,-200.0,0.00011086,2]
[400484794,1767651705843,-500.0,0.00011086,2]
[400484795,1767651705868,-500.0,0.00011086,2]
[400484796,1767651705892,-474.00030308,0.00011086,2]
[400484797,1767651705915,-1200.0,0.00011086,2]
[400484798,1767651705937,-188.331,0.00011086,2]
[400484799,1767651705958,-50000.0,0.00011087,2]
[400484800,1767651705980,-420.0,0.00011105,2]
[400484801,1767651706002,-298.44,0.000112,2]
[400484802,1767651706026,-600.0,0.00011306,2]
[400484803,1767651706048,-298.44,0.000116,2]
[400484804,1767651706072,-296.28721736,0.0001195,2]
[400484805,1767651706093,-500.0,0.00011954,2]
[400484806,1767651706726,1034.13281237,9.703e-05,2]
[400484807,1767651708629,12158.9884565,9.601e-05,2]
[400484808,1767651720594,-562.6451098,0.00012069,2]
[400484809,1767651720620,-7247.06417503,0.00012082,2]
[400484810,1767651720642,-298.44,0.000121,2]
[400484811,1767651720666,-3087.8718774,0.00012122,2]
[400484812,1767651720688,-278.9208913,0.00012122,2]
[400484813,1767651720712,-1680.0,0.00012194,2]
[400484814,1767651720733,-14300.0,0.000122,2]
[400484815,1767651720756,-587.0,0.00012214,2]
[400484816,1767651720779,-2127.04648917,0.00012285,2]
[400484817,1767651720801,-151.0,0.000124,2]
[400484818,1767651720823,-151.0,0.000124,2]
[400484819,1767651720846,-151.0,0.000124,2]
[400484820,1767651720870,-720.0,0.00012436,2]
[400484821,1767651720892,-1100.27994231,0.00012458,2]
[400484822,1767651720914,-298.44,0.000125,2]
[400484823,1767651720937,-496.47127164,0.00012509,2]
[400484824,1767651720960,-151.0,0.00012509,2]
[400484825,1767651720981,-471.06147654,0.00012552,2]
[400484826,1767651721004,-409.66,0.00012662,2]
[400484827,1767651721026,-2145.0,0.00012749,2]
[400484828,1767651721048,-1365.0,0.00012749,2]
[400484829,1767651721071,-628.0,0.00012749,2]
[400484830,1767651721093,-415.044,0.00012749,2]
[400484831,1767651721116,-194.627,0.00012749,2]
[400484832,1767651721139,-416.0,0.00012749,2]
[400484833,1767651721160,-479.256324,0.0001287,2]
[400484834,1767651721182,-479.256324,0.0001287,2]
[400484835,1767651721204,-479.256324,0.0001287,2]
[400484836,1767651721226,-479.256324,0.0001287,2]
[400484837,1767651721248,-298.44,0.000129,2]
[400484838,1767651721271,-168.0,0.00012908,2]
[400484839,1767651721293,-242.21746346,0.00012947,2]
[400484840,1767651721318,-168.0,0.00012984,2]
[400484841,1767651721340,-500.0,0.00012999,2]
[400484842,1767651721362,-473.3207735,0.00013,2]
[400484843,1767651721386,-151.0,0.00013,2]
[400484844,1767651722966,2127.04648917,0.0001165,2]
[400484845,1767651723140,300.0,0.00012121,2]
[400484846,1767651727598,504.19587253,0.00030136,120]
[400484847,1767651729690,500.0,0.00011086,2]
[400484848,1767651729720,500.0,0.00011086,2]
[400484849,1767651729750,500.0,0.00011086,2]
[400484850,1767651729779,500.0,0.00011086,2]
[400484851,1767651729813,500.0,0.00011086,2]
[400484852,1767651729842,500.0,0.00011086,2]
[400484853,1767651730020,500.0,0.00011086,2]
[400484854,1767651730049,455.79059225,0.00011086,2]
[400484855,1767651730077,500.0,0.00011086,2]
[400484856,1767651730104,500.0,0.00011086,2]
[400484857,1767651730135,500.0,0.00011086,2]
[400484858,1767651730163,377.43781505,0.00011086,2]
[400484859,1767651730330,500.0,0.00011086,2]
[400484860,1767651730368,500.0,0.00011086,2]
[400484861,1767651730406,500.0,0.00011086,2]
[400484862,1767651730448,500.0,0.00011086,2]
[400484863,1767651730633,500.0,0.00011086,2]
[400484864,1767651730670,500.0,0.00011086,2]
[400484865,1767651730707,500.0,0.00011086,2]
[400484866,1767651730744,500.0,0.00011086,2]
[400484867,1767651730956,500.0,0.00011086,2]
[400484868,1767651730990,500.0,0.00011086,2]
[400484869,1767651731022,500.0,0.00011086,2]
[400484870,1767651731139,500.0,0.00011086,2]
[400484871,1767651731301,500.0,0.00011086,2]
[400484872,1767651731339,500.0,0.00011086,2]
[400484873,1767651731378,500.0,0.00011086,2]
[400484874,1767651731840,-500.0,0.00011086,2]
[400484875,1767651731868,-500.0,0.00011086,2]
[400484876,1767651731896,-500.0,0.00011086,2]
[400484877,1767651731922,-421.1774745,0.00011086,2]
[400484878,1767651731948,-514.84070869,0.00013057,2]
[400484879,1767651731974,-800.0,0.00013058,2]
[400484880,1767651731999,-387.2047392,0.00013151,2]
[400484881,1767651732024,-193.6552732,0.00013151,2]
[400484882,1767651732050,-193.6552732,0.00013151,2]
[400484883,1767651732074,-193.6552732,0.00013151,2]
[400484884,1767651732098,-193.6552732,0.00013151,2]
[400484885,1767651732122,-396.2303051,0.00013151,2]
[400484886,1767651732147,-193.6552732,0.00013151,2]
[400484887,1767651732172,-193.6552732,0.00013151,2]
[400484888,1767651732199,-168.0,0.00013151,2]
[400484889,1767651732227,-168.0,0.00013194,2]
[400484890,1767651732252,-1041.66666667,0.00013242,2]
[400484891,1767651732278,-500.0,0.00013248,2]
[400484892,1767651732302,-479.256324,0.00013248,2]
[400484893,1767651732327,-479.256324,0.00013248,2]
[400484894,1767651732351,-479.256324,0.00013248,2]
[400484895,1767651732377,-479.256324,0.00013248,2]
[400484896,1767651732403,-286.0,0.00013261,2]
[400484897,1767651732428,-500.0,0.00013273,2]
[400484898,1767651732453,-500.0,0.00013273,2]
[400484899,1767651732479,-500.0,0.00013273,2]
[400484900,1767651732503,-500.0,0.00013273,2]
[400484901,1767651732527,-500.0,0.00013273,2]
[400484902,1767651732551,-500.0,0.00013273,2]
[400484903,1767651732575,-500.0,0.00013273,2]
[400484904,1767651732769,-515.55260822,0.00013273,2]
[400484905,1767651732801,-500.0,0.00013273,2]
[400484906,1767651732824,-415.34317373,0.00013273,2]
[400484907,1767651732848,-500.0,0.00013273,2]
[400484908,1767651732870,-392.70862672,0.00013273,2]
[400484909,1767651732893,-500.0,0.00013273,2]
[400484910,1767651732915,-511.9499622,0.00013273,2]
[400484911,1767651732937,-500.0,0.00013273,2]
[400484912,1767651732960,-500.0,0.00013273,2]
[400484913,1767651732986,-500.0,0.00013273,2]
[400484914,1767651733008,-500.0,0.00013273,2]
[400484915,1767651733030,-500.0,0.00013273,2]
[400484916,1767651733052,-500.0,0.00013273,2]
[400484917,1767651733073,-500.0,0.00013273,2]
[400484918,1767651733095,-500.0,0.00013273,2]
[400484919,1767651733116,-500.0,0.00013273,2]
[400484920,1767651733137,-500.0,0.00013273,2]
[400484921,1767651733159,-500.0,0.00013273,2]
[400484922,1767651733181,-500.0,0.00013273,2]
[400484923,1767651733203,-500.0,0.00013273,2]
[400484924,1767651733224,-500.0,0.00013273,2]
[400484925,1767651733246,-500.0,0.00013273,2]
[400484926,1767651733267,-500.0,0.00013273,2]
[400484927,1767651733289,-160.0,0.00013273,2]
[400484928,1767651733310,-160.0,0.00013273,2]
[400484929,1767651733331,-171.0,0.00013273,2]
[400484930,1767651733353,-479.256324,0.00013273,2]
[400484931,1767651733375,-479.256324,0.00013273,2]
[400484932,1767651733397,-479.256324,0.00013273,2]
[400484933,1767651733421,-479.256324,0.00013273,2]
[400484934,1767651733443,-420.0,0.00013305,2]
[400484935,1767651733465,-800.0,0.00013314,2]
[400484936,1767651733488,-500.0,0.00013324,2]
[400484937,1767651733510,-2657.35375342,0.00013326,2]
[400484938,1767651733534,-168.0,0.00013349,2]
[400484939,1767651733558,-2351.0,0.00013413,2]
[400484940,1767651733583,-300.0,0.00013413,2]
[400484941,1767651733611,-300.0,0.00013413,2]
[400484942,1767651733638,-300.0,0.00013413,2]
[400484943,1767651733662,-300.0,0.00013413,2]
[400484944,1767651733685,-685.35460639,0.00013471,2]
[400484945,1767651733707,-151.0,0.000135,2]
[400484946,1767651733730,-507.77635529,0.00013522,2]
[400484947,1767651733752,-286.0,0.00013584,2]
[400484948,1767651733775,-617.11996382,0.00013605,2]
[400484949,1767651733796,-300.0,0.00013673,2]
[400484950,1767651733818,-500.0,0.00013698,2]
[400484951,1767651733841,-521.33653343,0.00013698,2]
[400484952,1767651733864,-500.0,0.00013698,2]
[400484953,1767651733886,-500.0,0.00013698,2]
[400484954,1767651733908,-241.27391728,0.00013698,2]
[400484955,1767651733931,-500.0,0.00013698,2]
[400484956,1767651733953,-500.0,0.00013698,2]
[400484957,1767651733974,-588.65685206,0.00013698,2]
[400484958,1767651733997,-500.0,0.00013698,2]
[400484959,1767651734019,-500.0,0.00013698,2]
[400484960,1767651734041,-500.0,0.00013698,2]
[400484961,1767651734064,-500.0,0.00013698,2]
[400484962,1767651734087,-500.0,0.00013698,2]
[400484963,1767651734109,-500.0,0.00013698,2]
[400484964,1767651734130,-500.0,0.00013698,2]
[400484965,1767651734152,-500.0,0.00013698,2]
[400484966,1767651734174,-500.0,0.00013698,2]
[400484967,1767651734196,-648.41748171,0.00013698,2]
[400484968,1767651734217,-479.256324,0.00013698,2]
[400484969,1767651734239,-479.256324,0.00013698,2]
[400484970,1767651734260,-479.256324,0.00013698,2]
[400484971,1767651734282,-479.256324,0.00013698,2]
[400484972,1767651734304,-479.256324,0.00013698,2]
[400484973,1767651734326,-479.256324,0.00013698,2]
[400484974,1767651734348,-479.256324,0.00013698,2]
[400484975,1767651734370,-479.256323,0.00013698,2]
[400484976,1767651734394,-500.0,0.00013698,2]
[400484977,1767651734417,-231.9453148,0.00013698,2]
[400484978,1767651734560,244.61138463,0.00030136,120]
[400484979,1767651765954,500.0,0.00030136,120]
[400485000,1767651944473,242.02933609,0.00030136,120]
[400485001,1767651946228,501.7228956,0.00030136,120]
[400485003,1767651951114,503.05146132,0.00030136,120]
[400485004,1767651952993,502.60254616,0.00030136,120]
[400485005,1767651956725,504.27198666,0.00030136,120]
[400485009,1767652008187,156.5,9.184e-05,2]
[400485011,1767652012717,637.38930176,0.00030136,120]
[400485012,1767652015021,292.0032571,0.00030136,120]
[400485015,1767652017167,372.055612,0.00030136,120]
[400485016,1767652019470,502.36277482,0.00030136,120]
[400485017,1767652021323,501.50591019,0.00030136,120]
[400485018,1767652025095,511.19914202,0.00030136,120]
[400485019,1767652030015,501.7263461,0.00030136,120]
[400485036,1767652231886,-175.85,9.558e-05,2]
[400485038,1767652231897,-554.0,9.558e-05,2]
[400485039,1767652231906,-256.48544118,9.735e-05,2]
[400485040,1767652231915,-205.16,9.926e-05,2]
[400485041,1767652231926,-234.46,0.00010294,2]
[400485042,1767652231936,-263.77,0.00010661,2]
[400485043,1767652231946,-293.08,0.00011029,2]
[400485044,1767652231955,-300.0,0.00011596,2]
[400485045,1767652231964,-300.0,0.00011596,2]
[400485046,1767652231973,-1200.0,0.00011596,2]
[400485047,1767652231982,-50000.0,0.00011597,2]
[400485048,1767652231991,-500.0,0.00011598,2]
[400485049,1767652232001,-189.79245531,0.00011598,2]
[400485051,1767652232010,-500.0,0.00011598,2]
[400485052,1767652232019,-500.0,0.00011598,2]
[400485053,1767652232028,-502.27075422,0.00011598,2]
[400485054,1767652232038,-500.0,0.00011598,2]
[400485055,1767652232047,-500.0,0.00011598,2]
[400485056,1767652232056,-500.0,0.00011598,2]
[400485057,1767652232066,-475.31114958,0.00011598,2]
[400485058,1767652232075,-500.0,0.00011598,2]
[400485059,1767652232084,-500.0,0.00011598,2]
[400485060,1767652232093,-500.0,0.00011598,2]
[400485061,1767652232102,-500.0,0.00011598,2]
[400485062,1767652232111,-500.0,0.00011598,2]
[400485063,1767652232121,-500.0,0.00011598,2]
[400485064,1767652232131,-500.0,0.00011598,2]
[400485065,1767652232141,-380.1308305,0.00011598,2]
[400485066,1767652232151,-500.0,0.00011598,2]
[400485067,1767652232160,-500.0,0.00011598,2]
[400485068,1767652232170,-210.59629309,0.00011598,2]
[400485069,1767652232182,-158.59737052,0.00011598,2]
[400485070,1767652232191,-500.0,0.00011598,2]
[400485071,1767652232201,-550.0,0.00011598,2]
[400485072,1767652232209,-500.0,0.00011598,2]
[400485073,1767652232219,-500.0,0.00011598,2]
[400485074,1767652232228,-500.0,0.00011598,2]
[400485075,1767652232237,-1200.0,0.00011598,2]
[400485076,1767652232247,-302.65282059,0.00011735,2]
[400485077,1767652232255,-1152.18095775,0.00011735,2]
[400485078,1767652232264,-500.0,0.00012054,2]
[400485079,1767652232273,-300.0,0.00012443,2]
[400485080,1767652232282,-300.0,0.00012443,2]
[400485081,1767652232291,-300.0,0.00012443,2]
[400485082,1767652232302,-300.0,0.00012443,2]
[400485083,1767652232312,-300.0,0.00012443,2]
[400485084,1767652232322,-300.0,0.00012443,2]
[400485085,1767652232331,-300.0,0.00012443,2]
[400485086,1767652232340,-300.0,0.00012443,2]
[400485087,1767652232350,-300.0,0.00012443,2]
[400485088,1767652232360,-300.0,0.00012443,2]
[400485089,1767652232370,-300.0,0.00012443,2]
[400485090,1767652232380,-300.0,0.00012443,2]
[400485091,1767652232389,-300.0,0.00012443,2]
[400485092,1767652232398,-300.0,0.00012443,2]
[400485093,1767652232407,-300.0,0.00012443,2]
[400485094,1767652232416,-600.0,0.00012691,2]
[400485095,1767652232425,-154.0,0.00012735,2]
[400485096,1767652232434,-420.0,0.00012735,2]
[400485097,1767652232443,-1146.0,0.00012737,2]
[400485098,1767652232454,-1680.0,0.00012756,2]
[400485099,1767652232463,-6277.9013614,0.000129,2]
[400485100,1767652232471,-416.0,0.00012917,2]
[400485101,1767652232480,-178.0,0.00012917,2]
[400485102,1767652232489,-250.35772794,0.00013075,2]
[400485103,1767652232498,-1041.66666667,0.0001323,2]
[400485104,1767652232507,-500.0,0.00013273,2]
[400485105,1767652232515,-500.0,0.00013273,2]
[400485106,1767652232526,-500.0,0.00013273,2]
[400485107,1767652232535,-500.0,0.00013273,2]
[400485108,1767652232544,-500.0,0.00013273,2]
[400485109,1767652232552,-500.0,0.00013273,2]
[400485110,1767652232563,-501.19729571,0.00013273,2]
[400485111,1767652232571,-500.0,0.00013273,2]
[400485112,1767652232581,-500.0,0.00013273,2]
[400485113,1767652232591,-500.0,0.00013273,2]
[400485114,1767652232600,-500.74590143,0.00013273,2]
[400485115,1767652232608,-500.0,0.00013273,2]
[400485116,1767652232617,-500.50189369,0.00013273,2]
[400485117,1767652232626,-500.0,0.00013273,2]
[400485118,1767652232636,-500.0,0.00013273,2]
[400485119,1767652232646,-500.0,0.00013273,2]
[400485120,1767652232655,-500.0,0.00013273,2]
[400485121,1767652232663,-500.0,0.00013273,2]
[400485122,1767652232672,-500.0,0.00013273,2]
[400485123,1767652232682,-500.0,0.00013273,2]
[400485124,1767652232691,-500.0,0.00013273,2]
[400485125,1767652232699,-496.61069358,0.00013273,2]
[400485126,1767652232708,-33.10360732,0.00013273,2]
[400485127,1767652232719,-466.89639268,0.00013273,2]
[400485128,1767652232728,-500.70403234,0.00013273,2]
[400485129,1767652232737,-500.0,0.00013273,2]
[400485130,1767652232748,-500.0,0.00013273,2]
[400485131,1767652232759,-501.17704697,0.00013273,2]
[400485132,1767652232767,-429.2900976,0.00013273,2]
[400485133,1767652234718,-70.7099024,0.00013273,2]
[400485134,1767652234727,-452.17055711,0.00013273,2]
[400485135,1767652234736,-1771.56916894,0.00013424,2]
[400485136,1767652234746,-330.53339955,0.00013424,2]
[400485164,1767652237837,-256.48544118,9.647e-05,2]
[400485166,1767652237847,-250.69,0.0001,2]
[400485168,1767652237857,-250.69,0.000104,2]
[400485170,1767652237866,-250.69,0.000108,2]
[400485172,1767652237875,-250.69,0.000112,2]
[400485174,1767652237885,-250.69,0.000116,2]
[400485176,1767652237894,-302.65282059,0.00011647,2]
[400485178,1767652237903,-250.69,0.000121,2]
[400485180,1767652237913,-250.69,0.000125,2]
[400485182,1767652237922,-169.46660045,0.00013424,2]
[400485184,1767652237931,-2127.04648918,0.00013493,2]
[400485186,1767652237940,-174.23342421,0.00013498,2]
[400485188,1767652237951,-446.94503474,0.00013498,2]
[400485190,1767652237962,-1586.21195227,0.00013498,2]
[400485192,1767652237973,-2352.00076887,0.00013498,2]
[400485195,1767652237984,-37423.63876,0.00013498,2]
[400485197,1767652237995,-3006.72,0.00013498,2]
[400485199,1767652238006,-2739.5793,0.00013498,2]
[400485364,1767652245665,-250.69,0.000129,2]
[400485365,1767652245675,-250.69,0.000133,2]
[400485366,1767652245684,-1819.41753792,0.00013498,2]
[400485367,1767652245892,-680.90757339,0.00013498,2]
[400485368,1767652245904,-1441.88860185,0.00013498,2]
[400485369,1767652245915,-9431.12574118,0.00013498,2]
[400485370,1767652245954,-7055.12175463,0.00013498,2]
[400485373,1767652555852,500.0,0.00030136,120]
[400485374,1767652556074,500.0,0.00030136,120]
[400485375,1767652556308,500.0,0.00030136,120]
[400485376,1767652556568,500.0,0.00030136,120]
[400485377,1767652556806,500.0,0.00030136,120]
[400485378,1767652557063,500.0,0.00030136,120]
[400485379,1767652557298,500.0,0.00030136,120]
[400485380,1767652557530,500.0,0.00030136,120]
[400485381,1767652557777,500.0,0.00030136,120]
[400485382,1767652558162,500.0,0.00030136,120]
[400485383,1767652558459,500.0,0.00030136,120]
[400485384,1767652558713,500.0,0.00030136,120]
[400485385,1767652559153,500.0,0.00030136,120]
[400485386,1767652559404,500.0,0.00030136,120]
[400485387,1767652559827,222.25098138,0.00030136,120]
[400485388,1767652716242,155.0,3e-05,2]
[400485417,1767653431870,-205.57,0.0001,2]
[400485418,1767653431880,-560.0,0.0001,2]
[400485419,1767653431890,-243.84658398,0.0001005,2]
[400485420,1767653431899,-205.57,0.000104,2]
[400485421,1767653431908,-13.68899065,0.00010787,2]
[400485422,1767653431920,-156.98000635,0.00010787,2]
[400485423,1767653431930,-205.57,0.000108,2]
[400485424,1767653431939,-869.0450481,0.00010959,2]
[400485425,1767653431949,-434.85797645,0.00011075,2]
[400485426,1767653431959,-1167.00866128,0.00011075,2]
[400485427,1767653431968,-205.57,0.000112,2]
[400485428,1767653431978,-173.06328737,0.00011487,2]
[400485429,1767653431989,-126.93671263,0.00011487,2]
[400485431,1767653431998,-300.0,0.00011487,2]
[400485432,1767653432009,-210.27061178,0.00011487,2]
[400485434,1767653432022,-16.72938822,0.00011487,2]
[400485436,1767653432031,-896.95436555,0.00011487,2]
[400485439,1767653432062,-303.04563445,0.00011487,2]
[400485441,1767653432072,-23636.32148806,0.00011488,2]
[400485459,1767653437881,-1683.85927211,0.00011488,2]
[400485470,1767653437994,-2200.45950194,0.00011488,2]
[400485472,1767653438006,-438.41934811,0.00011488,2]
[400485474,1767653438017,-1583.79013717,0.00011488,2]
[400485476,1767653438029,-20457.15025261,0.00011488,2]
[400485478,1767653438042,-300.0,0.00011488,2]
[400485479,1767653438053,-1200.0,0.00011488,2]
[400485481,1767653438062,-395.46441428,0.00011488,2]
[400485483,1767653438071,-500.0,0.00011488,2]
[400485484,1767653438080,-500.0,0.00011488,2]
[400485486,1767653438090,-500.0,0.00011488,2]
[400485488,1767653438099,-500.0,0.00011488,2]
[400485490,1767653438114,-500.0,0.00011488,2]
[400485492,1767653438123,-316.63056527,0.00011488,2]
[400485494,1767653438132,-546.799912,0.00011489,2]
[400485496,1767653438142,-500.0,0.00011489,2]
[400485498,1767653438154,-500.0,0.00011489,2]
[400485500,1767653438164,-500.0,0.00011489,2]
[400485502,1767653438174,-373.47426336,0.00011489,2]
[400485504,1767653438187,-144.60920364,0.00011489,2]
[400485506,1767653438197,-500.0,0.00011489,2]
[400485508,1767653438207,-300.0,0.00011489,2]
[400485509,1767653438216,-500.0,0.00011489,2]
[400485511,1767653438226,-500.0,0.00011489,2]
[400485513,1767653438235,-302.19855116,0.00011489,2]
[400485667,1767653440131,-197.80144884,0.00011489,2]
[400485669,1767653440140,-500.0,0.00011489,2]
[400485671,1767653440152,-500.0,0.00011489,2]
[400485673,1767653440161,-166.64378424,0.00011489,2]
[400485675,1767653440172,-500.0,0.00011489,2]
[400485677,1767653440182,-500.0,0.00011489,2]
[400485679,1767653440191,-500.0,0.00011489,2]
[400485681,1767653440201,-500.0,0.00011489,2]
[400485683,1767653440210,-500.0,0.00011489,2]
[400485685,1767653440220,-300.0,0.00011489,2]
[400485687,1767653440229,-150.665,0.0001149,2]
[400485689,1767653440239,-172.77304815,0.00011498,2]
[400485691,1767653440248,-205.57,0.000116,2]
[400485693,1767653440260,-172.77304813,0.00011613,2]
[400485696,1767653440269,-25655.01208139,0.00011725,2]
[400485698,1767653440281,-5221.32445422,0.00011725,2]
[400485719,1767653445060,-4286.8484118,0.00011725,2]
[400485722,1767653445922,-2564.31976663,0.00011725,2]
[400485723,1767653445985,-23742.99999981,0.00011725,2]
[400485727,1767653446105,-3405.66973687,0.00011725,2]
[400485731,1767653605554,511.52227943,0.00030136,120]
[400485732,1767653610877,507.10329399,0.00030136,120]
[400485733,1767653611645,542.46915739,0.00030136,120]
[400485734,1767653613476,619.80876016,0.00030136,120]
[400485735,1767653615322,576.68656238,0.00030136,120]
[400485736,1767653615595,500.0,0.00030136,120]
[400485737,1767653624339,507.80337479,0.00030136,120]
[400485738,1767653624827,511.97991174,0.00030136,120]
[400485739,1767653626120,509.66652021,0.00030136,120]
[400485740,1767653626589,500.0,0.00030136,120]
[400485741,1767653626831,500.0,0.00030136,120]
[400485742,1767653627076,396.38341089,0.00030136,120]
[400485743,1767653627938,606.41547854,0.00030136,120]
[400485744,1767653629043,510.38079418,0.00030136,120]
[400485745,1767653629172,511.86280088,0.00030136,120]
[400485746,1767653631104,518.64089037,0.00030136,120]
[400485747,1767653631634,183.33,0.00030136,120]
[400485748,1767653632743,523.28375848,0.00030136,120]
[400485749,1767653634730,595.12817587,0.00030136,120]
[400485750,1767653636491,500.0,0.00030136,120]
[400485751,1767653636736,273.78857338,0.00030136,120]
[400485752,1767653637673,521.29143344,0.00030136,120]
[400485753,1767653638527,501.7139221,0.00030136,120]
[400485754,1767653642059,500.0,0.00030136,120]
[400485755,1767653644603,477.79229931,0.00030136,120]
[400485756,1767653644669,511.15731215,0.00030136,120]
[400485757,1767653646779,244.88779351,0.00030136,120]
[400485758,1767653652598,635.18370718,0.00030136,120]
[400485759,1767653656186,500.0,0.00030136,120]
[400485760,1767653656278,503.87211393,0.00030136,120]
[400485761,1767653656803,153.44989464,0.00030136,120]
[400485762,1767653658648,576.51264154,0.00030136,120]
[400485763,1767653666996,521.25911909,0.00030136,120]
[400485764,1767653670449,300.0,0.00011134,120]
[400485765,1767653672416,300.0,0.00011134,120]
[400485766,1767653674520,429.97,0.00030136,120]
[400485767,1767653676122,500.0,0.00030136,120]
[400485768,1767653676402,368.84,0.00030136,120]
[400485769,1767653677352,547.18279047,0.00030136,120]
[400485770,1767653679160,500.0,0.00030136,120]
[400485772,1767653684491,500.0,0.00030136,120]
[400485773,1767653688013,501.31415966,0.00030136,120]
[400485774,1767653688190,505.83951564,0.00030136,120]
[400485775,1767653689279,500.0,0.00030136,120]
[400485776,1767653691356,501.72698625,0.00030136,120]
[400485777,1767653691596,517.67016214,0.00030136,120]
[400485778,1767653693574,501.78857381,0.00030136,120]
[400485779,1767653693749,500.0,0.00030136,120]
[400485780,1767653694667,544.52905838,0.00030136,120]
[400485781,1767653701514,244.09198553,0.00030136,120]
[400485782,1767653702028,500.00000001,0.00030136,120]
[400485783,1767653703745,521.87,0.00030136,120]
[400485784,1767653705457,506.95714461,0.00030136,120]
[400485785,1767653710256,543.71594159,0.00030136,120]